[Event "Catalan University-ch 2024"]
[Site "Barcelona"]
[Date "2024.02.24"]
[Round "1.9"]
[White "Burnette Ingles, Lucas"]
[Black "Martinez Lopez, Carlos"]
[Result "0-1"]
[ECO "B32"]
[WhiteElo "1629"]
[BlackElo "2006"]
[Annotator "NA RC"]
[PlyCount "66"]
[EventDate "2024.02.24"]
[EventCountry "ESP"]
[SourceTitle "playchess.com"]
[Source "ChessBase"]
[SourceQuality "1"]
[TimeControl "5400+30"]

1. e4 {[%emt 1:20:59]} c5 {[%emt 1:20:57]} 2. Nf3 {[%emt 0:00:30]} Nc6 {[%emt 0:00:30]} 3. d4 {[%emt 0:00:30]} cxd4 {[%emt 0:00:29]} 4. Nxd4 {[%emt 0:00:30]} e5 {[%emt 0:00:30]} 5. Nb5 {[%emt 0:00:30]} d6 {[%emt 0:00:30]} 6. c4 {[%emt 0:00:34]} Be6 {[%emt 0:00:36]} 7. Be3 {[%emt 0:00:41]} Nf6 {[%emt 0:00:33]} 8. f3 {[%emt 0:00:46]} a6 {[%emt 0:00:41]} 9. N5c3 {[%emt 0:00:33]} g6 {[%emt 0:00:32]} 10. Qd2 {[%emt 0:00:38]} Bg7 {[%emt 0:00:38]} 11. Na3 {[%emt 0:00:48]} O-O {[%emt 0:00:55]} 12. Nc2 {[%emt 0:00:31]} Rc8 {[%emt 0:00:36]} 13. Be2 {[%emt 0:00:52]} Nh5 {[%emt 0:01:59]} 14. Rd1 {[%emt 0:01:27]} Nd4 {[%emt 0:01:34]} 15. Nxd4 {[%emt 0:00:56]} exd4 {[%emt 0:00:30]} 16. Bxd4 {[%emt 0:00:45]} Bxc4 {[%emt 0:00:36]} 17. Bxc4 {[%emt 0:00:57]} Rxc4 {[%emt 0:00:40]} 18. Bxg7 {[%emt 0:00:39]} Kxg7 {[%emt 0:00:32]} 19. Qxd6 {[%emt 0:01:07]} Qh4+ {[%emt 0:00:32]} 20. g3 {[%emt 0:00:48]} Qh3 {[%emt 0:00:57]} 21. Rd2 {[%emt 0:01:55]} b5 {[%emt 0:00:53]} 22. a3 {[%emt 0:00:53]} Kg8 {[%emt 0:00:43]} 23. Qd7 {[%emt 0:00:45]} Qxd7 {[%emt 0:01:21]} 24. Rxd7 {[%emt 0:00:30]} b4 {[%emt 0:00:31]} 25. axb4 {[%emt 0:01:33]} Rxb4 {[%emt 0:00:29]} 26. O-O {[%emt 0:01:15]} Rxb2 {[%emt 0:00:36]} 27. Ra7 {[%emt 0:00:37]} Rc8 {[%emt 0:00:41]} 28. Na4 {[%emt 0:00:51]} Ra2 {[%emt 0:00:41]} 29. Rxa6 {[%emt 0:01:03]} Rcc2 {[%emt 0:00:29]} 30. Ra8+ {[%emt 0:00:56]} Kg7 {[%emt 0:00:30]} 31. Rb1 {[%emt 0:00:30]} Rg2+ {[%emt 0:00:39]} 32. Kf1 {[%emt 0:00:31]} Rxh2 {[%emt 0:00:39]} 33. Rb2 {[%emt 0:00:33]} Ra1+ {[%emt 0:00:43]} 0-1

[Event "Catalan University-ch 2024"]
[Site "Barcelona"]
[Date "2024.02.24"]
[Round "1.10"]
[White "Gomez Navais, Marcal"]
[Black "Sole Jimenez, Joan"]
[Result "1-0"]
[ECO "C44"]
[WhiteElo "2081"]
[BlackElo "1545"]
[Annotator "NA RC"]
[PlyCount "93"]
[EventDate "2024.02.24"]
[EventCountry "ESP"]
[SourceTitle "playchess.com"]
[Source "ChessBase"]
[SourceQuality "1"]
[TimeControl "5400+30"]

1. e4 {[%emt 1:20:58]} e5 {[%emt 1:20:59]} 2. d4 {[%emt 0:00:36]} exd4 {[%emt 0:00:34]} 3. c3 {[%emt 0:00:29]} dxc3 {[%emt 0:01:02]} 4. Bc4 {[%emt 0:00:32]} Nc6 {[%emt 0:00:30]} 5. Nf3 {[%emt 0:00:31]} Bc5 {[%emt 0:00:39]} 6. Bxf7+ {[%emt 0:00:37]} Kxf7 {[%emt 0:01:14]} 7. Qd5+ {[%emt 0:00:31]} Ke8 {[%emt 0:00:33]} 8. Qxc5 {[%emt 0:00:32]} d6 {[%emt 0:00:49]} 9. Qe3 {[%emt 0:01:00]} Nf6 {[%emt 0:00:36]} 10. Nxc3 {[%emt 0:00:31]} Be6 {[%emt 0:01:15]} 11. O-O {[%emt 0:00:34]} h6 {[%emt 0:01:02]} 12. Rd1 {[%emt 0:00:31]} Qe7 {[%emt 0:00:36]} 13. h3 {[%emt 0:00:47]} g5 {[%emt 0:00:32]} 14. e5 {[%emt 0:00:32]} Nd7 {[%emt 0:01:06]} 15. exd6 {[%emt 0:00:32]} cxd6 {[%emt 0:00:29]} 16. Re1 {[%emt 0:00:42]} Nde5 {[%emt 0:00:51]} 17. Nd4 {[%emt 0:00:41]} Nxd4 {[%emt 0:01:11]} 18. Qxd4 {[%emt 0:00:30]} Bxh3 {[%emt 0:00:46]} 19. Ne4 {[%emt 0:01:05]} Rd8 {[%emt 0:01:00]} 20. Nxd6+ {[%emt 0:00:43]} Rxd6 {[%emt 0:00:32]} 21. Qxe5 {[%emt 0:00:30]} Qxe5 {[%emt 0:00:29]} 22. Rxe5+ {[%emt 0:00:30]} Be6 {[%emt 0:00:30]} 23. Be3 {[%emt 0:00:42]} a6 {[%emt 0:00:49]} 24. Re1 {[%emt 0:00:33]} Kf7 {[%emt 0:00:38]} 25. Bc5 {[%emt 0:00:38]} Rc6 {[%emt 0:00:37]} 26. Bd4 {[%emt 0:00:30]} Rd8 {[%emt 0:00:36]} 27. Bc3 {[%emt 0:00:34]} Bxa2 {[%emt 0:00:34]} 28. Re7+ {[%emt 0:00:30]} Kg6 {[%emt 0:00:29]} 29. Rxb7 {[%emt 0:00:36]} Bd5 {[%emt 0:00:35]} 30. Rg7+ {[%emt 0:00:30]} Kh5 {[%emt 0:00:35]} 31. Re3 {[%emt 0:00:42]} Be6 {[%emt 0:00:58]} 32. Re7 {[%emt 0:00:45]} Bg4 {[%emt 0:00:41]} 33. f3 {[%emt 0:00:41]} Bc8 {[%emt 0:00:33]} 34. Kf2 {[%emt 0:00:40]} g4 {[%emt 0:00:39]} 35. R3e5+ {[%emt 0:00:36]} Kg6 {[%emt 0:00:33]} 36. Re4 {[%emt 0:01:05]} Rf8 {[%emt 0:00:44]} 37. Rg7+ {[%emt 0:00:45]} Kh5 {[%emt 0:00:29]} 38. Re1 {[%emt 0:00:40]} Rg6 {[%emt 0:00:39]} 39. Rh1+ {[%emt 0:00:29]} Kg5 {[%emt 0:00:29]} 40. Bd2+ {[%emt 0:01:02]} Kf6 {[%emt 0:00:30]} 41. Rxg6+ {[%emt 0:00:29]} Kxg6 {[%emt 0:00:31]} 42. Rxh6+ {[%emt 0:00:30]} Kg7 {[%emt 0:00:30]} 43. Rc6 {[%emt 0:00:32]} gxf3 {[%emt 0:00:37]} 44. Bh6+ {[%emt 0:00:32]} Kg8 {[%emt 0:00:36]} 45. Bxf8 {[%emt 0:00:31]} fxg2 {[%emt 0:00:30]} 46. Rxc8 {[%emt 0:00:30]} g1=Q+ {[%emt 0:00:33]} 47. Kxg1 {[%emt 0:00:31]} 1-0

[Event "Catalan University-ch 2024"]
[Site "Barcelona"]
[Date "2024.02.24"]
[Round "2.1"]
[White "Adan Bermudez, Sergio"]
[Black "Dominguez Laguna, Eduard"]
[Result "1-0"]
[ECO "A11"]
[WhiteElo "2299"]
[BlackElo "1943"]
[Annotator "TA"]
[PlyCount "87"]
[EventDate "2024.02.24"]
[EventCountry "ESP"]
[SourceTitle "playchess.com"]
[Source "ChessBase"]
[SourceQuality "1"]
[TimeControl "5400+30"]

{[%evp 9,87,17,23,13,16,4,6,2,21,0,0,0,-4,-6,0,0,0,-2,0,-22,27,30,27,27,39,48,36,30,62,59,97,53,132,75,137,-69,102,97,93,99,197,127,132,49,95,98,88,88,183,181,194,192,279,278,276,231,237,203,290,289,272,273,406,389,530,532,511,477,806,845,850,854,819,768,723,719,704,697,2971,2652]} 1. c4 {[%emt 1:20:58]} c6 {[%emt 1:20:57]} 2. Nc3 {[%emt 0:00:31]} d5 {[%emt 0:00:29]} 3. e3 {[%emt 0:00:29]} Nf6 {[%emt 0:00:30]} 4. Nf3 {[%emt 0:00:29]} a6 {[%emt 0:00:29]} 5. b3 {[%emt 0:00:34]} Bg4 {[%emt 0:00:44]} 6. Bb2 {[%emt 0:00:30]} e6 {[%emt 0:00:30]} 7. Be2 {[%emt 0:00:31]} Nbd7 {[%emt 0:00:41]} 8. O-O {[%emt 0:00:49] The position is equal.} Bd6 {[%emt 0:00:41]} 9. d3 {[%emt 0:00:42]} O-O {[%emt 0:00:36]} 10. h3 {[%emt 0:00:55]} Bh5 {[%emt 0:00:52]} 11. cxd5 {[%emt 0:00:54]} exd5 {[%emt 0:00:51]} 12. Nh4 {[%emt 0:01:07]} Bg6 {[%emt 0:01:34]} 13. Nxg6 {[%emt 0:00:33]} hxg6 {[%emt 0:00:30]} 14. e4 {[%emt 0:00:54]} d4 {[%emt 0:01:08]} (14... dxe4 {is more appropriate.} 15. Nxe4 Bc7) 15. Nb1 $11 {[%emt 0:00:34]} c5 {[%emt 0:00:32]} 16. Nd2 {[%emt 0:00:31]} b5 {[%emt 0:00:41]} 17. f4 {[%emt 0:00:30]} Bc7 {[%emt 0:00:51]} 18. g3 {[%emt 0:00:57]} Re8 {[%emt 0:02:16][%cal Og6g5]} 19. Bf3 {[%emt 0:00:32] e5 is the strong threat.} Rb8 {[%emt 0:00:44]} 20. e5 {[%emt 0:01:03]} Nh7 {[%emt 0:00:31]} (20... Bxe5 $14 21. fxe5 Nxe5) 21. Be4 {[%emt 0:00:32]} ({Better is} 21. Rc1) 21... Ndf8 {[%emt 0:00:55]} ({Black should try} 21... Nxe5 22. fxe5 Rxe5) 22. Qg4 $2 {[%emt 0:01:49] [#]} (22. Rc1 $16) 22... Qd7 $2 {[%emt 0:01:52]} (22... f5 $15 {stays ahead.} 23. Bxf5 (23. exf6 Nxf6 24. Qf3 Ba5 $17) 23... gxf5 24. Qxf5 Qd5) 23. Qxd7 $16 {[%emt 0:00:37]} Nxd7 {[%emt 0:00:29] Black is weak on the light squares} 24. Rac1 {[%emt 0:00:35]} Red8 {[%emt 0:00:49]} (24... Ba5 $16 25. Nf3 Nhf8) 25. Bc6 {[%emt 0:00:44]} (25. Bxd4 $18 Nhf8 26. Nf3 (26. Bxc5 Nxc5 27. Rxc5 Bb6 $15)) 25... Bb6 {[%emt 0:00:52]} 26. a4 {[%emt 0:00:32]} (26. h4 $16) 26... bxa4 {[%emt 0:00:48]} (26... Ba5 $14 {is superior.} 27. Ne4 bxa4) 27. bxa4 {[%emt 0:00:43]} Nhf8 {[%emt 0:00:38]} 28. Ba3 {[%emt 0:00:31] White is much more active. A strong pair of Bishops.} Rdc8 {[%emt 0:00:59]} (28... Ba5 $16 29. Nc4 Bb4) 29. Bd5 $36 {[%emt 0:00:31][%cal Bc6d5,Bd5b3,Bb3c4][%mdl 2080] White is on the roll.} Ne6 {[%emt 0:00:41]} 30. Nc4 {[%emt 0:00:43] Inhibits Ba5.} Ba7 {[%emt 0:00:29]} (30... Bc7 $142 31. Rb1 Nd8) 31. Nd6 {[%emt 0:00:37]} Rc7 {[%emt 0:00:30]} 32. Rb1 {[%emt 0:00:33]} Nb6 {[%emt 0:00:47]} 33. Bb3 {[%emt 0:00:41]} Kf8 {[%emt 0:00:41]} (33... Nd8 {is a better defense.} 34. Rfc1 Nd7) 34. a5 {[%emt 0:00:33]} Nd7 {[%emt 0:00:33]} 35. Bc4 {[%emt 0:00:30]} Ke7 {[%emt 0:00:35]} (35... Rxb1 $142 36. Rxb1 Bb8) 36. Bxa6 {[%emt 0:00:36]} Rxb1 {[%emt 0:00:35]} 37. Rxb1 {[%emt 0:00:29] White is clearly winning.} Nb8 {[%emt 0:00:28]} 38. Bb5 {[%emt 0:00:51]} Nc6 {[%emt 0:00:30]} (38... g5 $142 39. f5 Nd8) 39. Bxc6 {[%emt 0:00:38]} Rxc6 {[%emt 0:00:28]} 40. Rb7+ {[%emt 0:00:33]} Rc7 {[%emt 0:00:29]} 41. Nc8+ {[%emt 0:00:35]} Kd8 {[%emt 0:00:41]} 42. Rxc7 {[%emt 0:00:30]} ({Less strong is} 42. Rxa7 Kxc8 43. Rxc7+ Kxc7 $16) 42... Kxc7 {[%emt 0:00:31]} 43. Nxa7 {[%emt 0:00:30]} Nd8 {[%emt 0:00:33]} 44. Bxc5 {[%emt 0:00:33] Weighted Error Value: White=0.22 (precise) /Black=0.42.  Mistake:       	White=4     	Black=11     Inaccurate:     	White=1     	Black=3      OK:         	White=12    	Black=12     Best:        	White=3     	---} 1-0

[Event "Catalan University-ch 2024"]
[Site "Barcelona"]
[Date "2024.02.24"]
[Round "2.2"]
[White "Pera Muntasell, Marc"]
[Black "Castillo Dalmau, Albert"]
[Result "0-1"]
[ECO "B15"]
[WhiteElo "1916"]
[BlackElo "2313"]
[Annotator "TA"]
[PlyCount "49"]
[EventDate "2024.02.24"]
[EventCountry "ESP"]
[SourceTitle "playchess.com"]
[Source "ChessBase"]
[SourceQuality "1"]
[TimeControl "5400+30"]

{[%evp 16,49,0,0,7,0,0,0,0,0,0,-16,-13,-42,-40,-86,-87,-95,-91,-306,-303,-310,-305,-299,-303,-279,-291,-536,-530,-526,-534,-546,-533,-552,-545,-946]} 1. e4 {[%emt 1:20:56]} c6 {[%emt 1:20:58]} 2. d4 {[%emt 0:00:29]} d5 {[%emt 0:00:29]} 3. Nd2 {[%emt 0:00:29]} dxe4 {[%emt 0:00:30]} 4. Nxe4 {[%emt 0:00:29]} Nf6 {[%emt 0:00:29]} 5. Nxf6+ {[%emt 0:00:29]} exf6 {[%emt 0:00:30]} 6. Nf3 {[%emt 0:00:29]} Bd6 {[%emt 0:00:29]} 7. Bd3 {[%emt 0:00:29]} O-O {[%emt 0:00:32]} 8. O-O {[%emt 0:00:30]} Bg4 {[%emt 0:00:49]} 9. h3 {[%emt 0:00:29]} Bh5 {[%emt 0:00:29]} 10. Re1 {[%emt 0:00:29]} Nd7 {[%emt 0:00:36]} 11. c4 {[%emt 0:00:29]} (11. g4 $5 Bg6 $8 12. c4 $11) 11... Re8 {[%emt 0:00:46] The position is equal.} 12. Be3 {[%emt 0:00:46]} Nf8 {[%emt 0:00:49]} 13. Bc2 {[%emt 0:00:44]} (13. g4 $5 Bg6 $8 14. d5 $14) 13... Bc7 {[%emt 0:00:36]} 14. c5 {[%emt 0:00:51]} Qd7 {[%emt 0:01:07]} 15. b4 {[%emt 0:01:07]} (15. d5 $15) 15... Rad8 $17 {[%emt 0:00:39] Black is more active.} 16. a4 {[%emt 0:01:58]} f5 {[%emt 0:02:20]} 17. Qd2 $2 {[%emt 0:02:57]} (17. Bd2 $17) 17... Bxf3 $19 {[%emt 0:01:00]} 18. gxf3 {[%emt 0:00:30]} Ng6 {[%emt 0:00:56] [#] ...Nh4 would now be deadly.} 19. Qd3 {[%emt 0:02:53]} f4 {[%emt 0:00:47]} 20. Bd2 {[%emt 0:00:34]} Qxh3 {[%emt 0:00:41]} (20... Qxd4 $2 {too greedy.} 21. Rxe8+ Rxe8 22. Qxd4 $18) 21. Qf5 {[%emt 0:02:13] Inhibits Re5.} (21. Rxe8+ Rxe8 22. Bc3) 21... Qxf5 {[%emt 0:02:42] Black is clearly winning.} (21... Qxf3 $2 22. Rxe8+ Rxe8 23. Bd1 $17) 22. Bxf5 {[%emt 0:01:10]} Nh4 {[%emt 0:00:32]} 23. Rxe8+ {[%emt 0:00:25]} Rxe8 {[%emt 0:00:30]} 24. Be4 {[%emt 0:00:35]} f5 {[%emt 0:00:37]} 25. Re1 {[%emt 0:00:30] Black took control after the opening.   Weighted Error Value: White=0.60/Black=0.00 (flawless) .  Loses game:     	White=1     	---        Mistake:       	White=2     	---        Inaccurate:     	White=2     	---        OK:         	White=3     	Black=7      Best:        	---       	Black=6} 0-1

[Event "Catalan University-ch 2024"]
[Site "Barcelona"]
[Date "2024.02.24"]
[Round "2.3"]
[White "Roca Planas, Edgar"]
[Black "Espelt Granes, Esteve"]
[Result "1-0"]
[ECO "B51"]
[WhiteElo "2248"]
[BlackElo "1934"]
[Annotator "TA"]
[PlyCount "65"]
[EventDate "2024.02.24"]
[EventCountry "ESP"]
[SourceTitle "playchess.com"]
[Source "ChessBase"]
[SourceQuality "1"]
[TimeControl "5400+30"]

{[%evp 9,65,67,145,154,170,117,124,119,123,129,129,124,173,166,206,210,256,250,252,246,257,257,266,221,225,214,227,229,221,216,221,226,329,336,331,327,402,414,407,401,475,470,447,270,247,219,281,263,267,264,270,263,676,667,680,574,29982,29983]} 1. e4 {[%emt 1:21:01]} c5 {[%emt 1:21:01]} 2. Nf3 {[%emt 0:10:29]} Nc6 {[%emt 0:10:29]} 3. Bb5 {[%emt 0:00:00]} e5 {[%emt 0:00:00]} 4. O-O {[%emt 0:00:00]} d6 {[%emt 0:00:00]} 5. c3 {[%emt 0:00:00]} g6 {[%emt 0:00:00]} (5... Nf6 $14) 6. d4 $16 {[%emt 0:00:00]} Bg7 {[%emt 0:00:00][%cal Rc5d4]} 7. Bxc6+ {[%emt 0:00:00]} (7. dxe5 $18 dxe5 8. Qxd8+ Kxd8 9. Bxc6 bxc6 10. Be3) 7... bxc6 8. dxc5 {[%emt 0:00:00] White is better.} dxc5 {[%emt 0:00:00]} 9. Qxd8+ {[%emt 0:00:00]} Kxd8 {[%emt 0:00:00]} 10. Be3 {[%emt 0:00:00]} c4 {[%emt 0:00:00]} (10... Kc7 $16 {was necessary.} 11. c4 (11. Bxc5 f6 $16) 11... Nf6) 11. Na3 $18 {[%emt 0:00:00]} Ba6 {[%emt 0:00:00]} 12. Rfd1+ {[%emt 0:00:00]} Ke8 {[%emt 0:00:00]} 13. Nd2 {[%emt 0:00:00][%cal Bf3d2,Bd2c4,Bc4a5][%mdl 32]} Nf6 {[%emt 0:00:00]} 14. f3 {[%emt 0:00:00]} Nd7 {[%emt 0:00:00]} 15. Ndxc4 {[%emt 0:00:00]} Ke7 {[%emt 0:00:00]} 16. Na5 {[%emt 0:00:00]} Rhc8 {[%emt 0:00:00]} 17. Rd2 {[%emt 0:00:00]} Rc7 {[%emt 0:01:36]} 18. Rad1 {[%emt 0:00:00][%cal Oa5c6] Black must now prevent Nxc6+!} Bf8 {[%emt 0:01:03]} 19. N3c4 {[%emt 0:00:39]} Ke6 {[%emt 0:00:59]} 20. f4 {[%emt 0:02:19][%cal Bf3f4,Bf4f5][%mdl 32]} f6 {[%emt 0:00:54] [#]} (20... Bxc4 {keeps fighting.} 21. Nxc4 f6 22. f5+ Ke7) 21. f5+ $1 {[%emt 0:00:33][%mdl 512]} Ke7 {[%emt 0:01:00][%cal Be6e7,Be7e8,Be8f8,Bf8g8][%mdl 32] [#]} 22. Nxc6+ $1 {[%emt 0:00:31][%mdl 512] Excellent horsemanship.} Ke8 {[%emt 0:01:08]} (22... Rxc6 23. Rxd7+) 23. Nd6+ {[%emt 0:00:30]} Bxd6 {[%emt 0:00:40]} 24. Rxd6 {[%emt 0:00:30] And now Re6+ would win.} Bb7 {[%emt 0:00:49]} 25. Re6+ {[%emt 0:00:29]} ({Don't do} 25. Nxa7 Rxa7 26. Bxa7 Bxe4 27. fxg6 (27. Bb6 Rb7 $18) 27... hxg6) 25... Kf8 {[%emt 0:00:39]} 26. Bh6+ {[%emt 0:00:31]} Kg8 {[%emt 0:00:49]} 27. Nb4 {[%emt 0:01:11] Re7 would now be deadly.} Bxe4 {[%emt 0:00:39]} 28. fxg6 {[%emt 0:00:39]} hxg6 {[%emt 0:02:44]} 29. Re7 a5 {[%emt 0:00:00]} 30. Nd5 {[%emt 0:01:36]} ({Stronger than} 30. Rdxd7 Rxd7 31. Rxd7 axb4 $11) 30... Rb7 {[%emt 0:00:00] [#] Black is weak on the dark squares} (30... Bxd5 31. Rxd5 Nb6 32. Rdxe5 (32. Rxc7 Nxd5 33. Rg7+ Kh8 $18) 32... Nc4 33. Rxc7 Nxe5 34. Rg7+ Kh8) 31. Rxd7 $1 {[%emt 0:00:37][%mdl 512]} Bxd5 {[%emt 0:00:45]} (31... Rxd7 32. Nxf6+) 32. R7xd5 {[%emt 0:00:30]} Rxb2 {[%emt 0:00:32]} 33. Rd7 {[%emt 0:00:54] Prevents Ra7.   Weighted Error Value: White=0.17 (very precise) /Black=0.79.  Mistake:       	White=1     	Black=3      Inaccurate:     	White=1     	---        OK:         	White=14    	Black=5      Best:        	---       	Black=3      Brilliant:      	White=1     	---} 1-0

[Event "Catalan University-ch 2024"]
[Site "Barcelona"]
[Date "2024.02.24"]
[Round "2.4"]
[White "Ruiz Lupon, Neri"]
[Black "Sole Pijuan, Ferran"]
[Result "1-0"]
[ECO "C44"]
[WhiteElo "1968"]
[BlackElo "2136"]
[Annotator "RC"]
[PlyCount "82"]
[EventDate "2024.02.24"]
[EventCountry "ESP"]
[SourceTitle "playchess.com"]
[Source "ChessBase"]
[SourceQuality "1"]
[TimeControl "5400+30"]

1. e4 {[%emt 1:20:59]} e5 {[%emt 1:20:57]} 2. Nf3 {[%emt 0:00:29]} Nc6 {[%emt 0:00:29]} 3. c3 {[%emt 0:00:30]} d5 {[%emt 0:00:30]} 4. Qa4 {[%emt 0:00:30]} f6 {[%emt 0:00:30]} 5. d3 {[%emt 0:00:34]} Nge7 {[%emt 0:00:41]} 6. Be2 {[%emt 0:00:35]} Bd7 {[%emt 0:00:29]} 7. Qc2 {[%emt 0:00:32]} dxe4 {[%emt 0:00:43]} 8. dxe4 {[%emt 0:00:30]} Ng6 {[%emt 0:00:42]} 9. O-O {[%emt 0:00:39]} h5 {[%emt 0:00:29]} 10. Rd1 {[%emt 0:00:39]} Bd6 {[%emt 0:00:33]} 11. Nbd2 {[%emt 0:00:38]} Nf4 {[%emt 0:00:29]} 12. Bf1 {[%emt 0:00:33]} h4 {[%emt 0:00:29]} 13. h3 {[%emt 0:00:29]} Qe7 {[%emt 0:00:43]} 14. Nc4 {[%emt 0:00:31]} Bc5 {[%emt 0:01:34]} 15. b4 {[%emt 0:00:39]} Bb6 {[%emt 0:00:30]} 16. a4 {[%emt 0:00:29]} a6 {[%emt 0:00:40]} 17. Ba3 {[%emt 0:00:33]} Qf7 {[%emt 0:00:50]} 18. b5 {[%emt 0:01:48]} axb5 {[%emt 0:00:30]} 19. axb5 {[%emt 0:00:29]} Na5 {[%emt 0:00:30]} 20. Nxb6 {[%emt 0:00:31]} cxb6 {[%emt 0:00:29]} 21. Bc1 {[%emt 0:00:41]} g5 {[%emt 0:01:02]} 22. Nh2 {[%emt 0:00:43]} O-O {[%emt 0:00:46]} 23. Rd6 {[%emt 0:01:05]} Be6 {[%emt 0:02:13]} 24. Bxf4 {[%emt 0:00:56]} exf4 {[%emt 0:00:44]} 25. Rxb6 {[%emt 0:01:07]} Nc4 {[%emt 0:00:36]} 26. Rxa8 {[%emt 0:00:31]} Rxa8 {[%emt 0:00:38]} 27. Bxc4 {[%emt 0:01:04]} Bxc4 {[%emt 0:00:31]} 28. Nf3 {[%emt 0:00:46]} Ra2 {[%emt 0:01:08]} 29. Qd1 {[%emt 0:00:35]} Kg7 {[%emt 0:00:50]} 30. e5 {[%emt 0:00:30]} Be2 {[%emt 0:01:10]} 31. exf6+ {[%emt 0:00:31]} Kh6 {[%emt 0:00:51]} 32. Qd8 {[%emt 0:01:06]} Bxf3 {[%emt 0:01:15]} 33. gxf3 {[%emt 0:00:32]} Re2 {[%emt 0:01:49]} 34. Qh8+ {[%emt 0:00:30]} Kg6 {[%emt 0:00:29]} 35. Qg7+ {[%emt 0:00:29]} Qxg7 {[%emt 0:00:32]} 36. fxg7+ {[%emt 0:00:29]} Kxg7 {[%emt 0:00:29]} 37. Rxb7+ Kf6 {[%emt 0:01:10]} 38. c4 {[%emt 0:01:07]} Rc2 {[%emt 0:00:00]} 39. Rc7 {[%emt 0:00:29]} Ke5 {[%emt 0:00:21]} 40. b6 {[%emt 0:00:29]} Rb2 {[%emt 0:00:31]} 41. c5 {[%emt 0:00:31]} Kd5 {[%emt 0:00:00]} 1-0

[Event "Catalan University-ch 2024"]
[Site "Barcelona"]
[Date "2024.02.24"]
[Round "2.5"]
[White "Garcia Escoda, Marc"]
[Black "Pueyo Amoros, Pau"]
[Result "1-0"]
[ECO "D34"]
[WhiteElo "2074"]
[BlackElo "1858"]
[Annotator "NA COMBH"]
[PlyCount "107"]
[EventDate "2024.02.24"]
[EventCountry "ESP"]
[SourceTitle "playchess.com"]
[Source "ChessBase"]
[SourceQuality "1"]
[TimeControl "5400+30"]

1. Nf3 {[%emt 1:20:57]} Nf6 {[%emt 1:20:58]} 2. g3 {[%emt 0:00:32]} e6 {[%emt 0:00:36]} 3. Bg2 {[%emt 0:00:30]} d5 {[%emt 0:00:32]} 4. O-O {[%emt 0:00:31]} c5 {[%emt 0:00:46]} 5. d4 {[%emt 0:00:29]} Nc6 {[%emt 0:00:31]} 6. c4 {[%emt 0:00:29]} Be7 {[%emt 0:01:00]} 7. cxd5 {[%emt 0:00:33]} exd5 {[%emt 0:00:31]} 8. Nc3 {[%emt 0:00:29]} O-O {[%emt 0:00:42]} 9. Bf4 {[%emt 0:00:41]} Be6 {[%emt 0:00:43]} 10. Rc1 {[%emt 0:00:36]} c4 {[%emt 0:01:08]} 11. Ne5 {[%emt 0:00:41]} h6 {[%emt 0:00:35]} 12. e4 {[%emt 0:03:29]} Nxe5 {[%emt 0:01:10]} 13. dxe5 {[%emt 0:00:30]} Nxe4 {[%emt 0:00:39]} 14. Nxe4 {[%emt 0:00:36]} dxe4 {[%emt 0:00:30]} 15. Bxe4 {[%emt 0:00:37]} Qxd1 {[%emt 0:00:35]} 16. Rfxd1 {[%emt 0:00:29]} Rab8 {[%emt 0:00:41]} 17. Be3 {[%emt 0:01:00]} b6 {[%emt 0:00:48]} 18. f4 {[%emt 0:00:28]} g6 {[%emt 0:00:49]} 19. Kf2 {[%emt 0:01:18]} a5 {[%emt 0:01:14]} 20. Bd5 {[%emt 0:01:08]} b5 {[%emt 0:00:31]} 21. Bxe6 {[%emt 0:00:53]} fxe6 {[%emt 0:00:30]} 22. Rd7 {[%emt 0:00:29]} Kf7 {[%emt 0:00:35]} 23. Bc5 {[%emt 0:00:50]} Rfe8 {[%emt 0:00:37]} 24. Rcd1 {[%emt 0:00:29]} Kf8 {[%emt 0:00:49]} 25. Rxe7 {[%emt 0:00:47]} Rxe7 {[%emt 0:00:30]} 26. Rd7 {[%emt 0:00:29]} Rbe8 {[%emt 0:00:39]} 27. Rb7 {[%emt 0:00:29]} b4 {[%emt 0:01:36]} 28. Rc7 {[%emt 0:00:30]} Kf7 {[%emt 0:00:38]} 29. Bxe7 {[%emt 0:00:29]} Rxe7 {[%emt 0:00:29]} 30. Rxc4 {[%emt 0:00:30]} Rd7 {[%emt 0:00:34]} 31. Ke2 {[%emt 0:00:32]} g5 {[%emt 0:00:47]} 32. Rc5 {[%emt 0:00:43]} Ra7 {[%emt 0:00:48]} 33. fxg5 {[%emt 0:00:42]} hxg5 {[%emt 0:00:30]} 34. Kf3 {[%emt 0:00:29]} Kg6 {[%emt 0:00:36]} 35. Kg4 {[%emt 0:00:28]} Ra6 {[%emt 0:01:02]} 36. Rc2 {[%emt 0:00:36]} a4 {[%emt 0:01:33]} 37. Rf2 {[%emt 0:00:29]} b3 {[%emt 0:00:37]} 38. axb3 {[%emt 0:01:02]} axb3 {[%emt 0:00:30]} 39. Rf6+ {[%emt 0:00:28]} Kg7 {[%emt 0:00:37]} 40. Rf3 {[%emt 0:00:29]} Rb6 {[%emt 0:00:58]} 41. Kxg5 {[%emt 0:00:32]} Rb4 {[%emt 0:00:31]} 42. Rc3 {[%emt 0:00:42]} Rb7 {[%emt 0:00:37]} 43. h4 {[%emt 0:00:33]} Kh7 {[%emt 0:00:32]} 44. Kf6 {[%emt 0:00:34]} Rb6 {[%emt 0:00:31]} 45. g4 {[%emt 0:00:33]} Kh6 {[%emt 0:00:37]} 46. Rc8 {[%emt 0:00:33]} Kh7 {[%emt 0:00:30]} 47. Rc7+ {[%emt 0:00:29]} Kg8 {[%emt 0:00:32]} 48. g5 {[%emt 0:00:33]} Ra6 {[%emt 0:00:34]} 49. g6 {[%emt 0:00:30]} Ra8 {[%emt 0:00:33]} 50. h5 {[%emt 0:00:36]} Rf8+ {[%emt 0:00:30]} 51. Rf7 {[%emt 0:00:30]} Re8 {[%emt 0:00:31]} 52. h6 {[%emt 0:00:37]} Rd8 {[%emt 0:00:32]} 53. Kxe6 {[%emt 0:00:51]} Kh8 {[%emt 0:00:30]} 54. Ke7 {[%emt 0:00:29]} 1-0